bitfinex-derivatives/quotes_ETHF0:USTF0_20210401
["timestamp","ask_amount","ask_price","bid_price","bid_amount"]
[1617303997977,32.0,1967.4,1966.5,2.90695]
[1617304000178,2.90695,1966.6,1966.5,2.90695]
[1617304002279,2.90695,1966.6,1965.8,14.0041]
[1617304002479,84.01775,1966.6,1965.8,14.0041]
[1617304002680,114.01775,1966.6,1965.8,14.0041]
[1617304002884,115.33535,1966.6,1965.8,14.0041]
[1617304004183,3.93105,1965.9,1965.8,14.0041]
[1617304004388,35.53015,1965.9,1965.8,14.0041]
[1617304005187,37.53015,1965.9,1965.8,14.0041]
[1617304005388,35.53015,1965.9,1965.8,14.0041]
[1617304005588,35.53015,1965.9,1965.8,13.0011]
[1617304007090,2.90695,1965.9,1965.8,13.0011]
[1617304008090,2.90695,1965.9,1965.8,15.90805]
[1617304008500,66.9105,1966.8,1965.8,15.90805]
[1617304008691,66.9105,1966.8,1965.8,16.95905]
[1617304009192,65.906,1966.8,1965.8,16.95905]
[1617304009991,65.906,1966.8,1965.8,15.90805]
[1617304010193,2.90695,1965.9,1965.8,15.90805]
[1617304010390,2.90695,1965.9,1965.8,13.0011]
[1617304011792,65.906,1966.8,1965.8,13.0011]
[1617304012096,65.906,1966.8,1966.0,2.90695]
[1617304014195,2.90695,1966.1,1966.0,2.90695]
[1617304015297,65.906,1966.8,1966.0,2.90695]
[1617304015499,4.584,1967.4,1966.0,2.90695]
[1617304015798,4.584,1967.4,1966.3,83.3452]
[1617304016098,2.584,1967.4,1966.3,84.7925]
[1617304016299,2.584,1967.4,1966.6,2.90695]
[1617304018505,2.90695,1966.7,1966.6,2.90695]
[1617304018803,2.90695,1966.7,1966.3,83.3452]
[1617304020504,2.90695,1966.4,1966.3,83.3452]
[1617304022105,0.05897404,1967.0,1966.3,83.3452]
[1617304022307,0.05897404,1967.0,1966.3,85.0108]
[1617304022532,0.05896801,1967.1,1966.8,2.90695]
[1617304022752,0.05896759,1967.2,1966.8,4.43045]
[1617304022944,0.05896759,1967.2,1966.9,81.8466]
[1617304023153,0.05896686,1967.3,1966.9,81.8466]
[1617304023552,0.70751693,1968.0,1966.9,81.8466]
[1617304023921,0.70743645,1968.2,1966.9,81.8466]
[1617304024116,0.70743645,1968.2,1966.8,34.43045]
[1617304024345,0.70740213,1968.4,1967.6,69.099]
[1617304024511,0.70736284,1968.6,1968.2,2.90695]
[1617304024711,0.70736284,1968.6,1968.2,4.17515]
[1617304024913,0.70733981,1968.7,1968.2,4.17515]
[1617304025412,0.70730846,1968.8,1968.2,4.17515]
[1617304025711,0.2624573,1969.1,1968.8,58.7391]
[1617304025712,0.70720542,1969.1,1968.8,58.7391]
[1617304025915,0.70720542,1969.1,1968.8,59.8639]
[1617304026112,0.70717234,1969.2,1968.8,59.8639]
[1617304026412,0.70717756,1969.3,1968.8,57.32178995]
[1617304026613,2.90695,1969.0,1968.9,2.90695]
[1617304026813,0.70717756,1969.3,1968.9,2.90695]
[1617304027213,0.05892245,1969.0,1968.9,2.90695]
[1617304027514,0.05891232,1969.3,1968.9,2.90695]
[1617304027913,3.29087471,1969.9,1968.9,2.90695]
[1617304028117,2.584,1969.9,1968.9,2.90695]
[1617304028716,0.70684533,1970.0,1969.6,2.90695]
[1617304028918,0.70684533,1970.0,1969.6,4.31715]
[1617304029118,0.70684096,1970.1,1969.6,4.31715]
[1617304029923,0.70674665,1970.2,1969.6,4.31715]
[1617304030443,0.70674665,1970.2,1969.6,80.15505]
[1617304030621,2.90695,1969.7,1969.6,80.15505]
[1617304032328,2.90695,1969.7,1969.6,4.31715]
[1617304032523,2.90695,1969.7,1969.6,1.4102]
[1617304032726,2.90695,1969.7,1968.9,69.9875]
[1617304033325,3.61552651,1969.7,1968.9,69.9875]
[1617304033928,0.70862064,1969.6,1968.9,69.9875]
[1617304034526,2.90695,1969.0,1968.9,69.9875]
[1617304036530,2.90695,1969.0,1968.9,72.89445]
[1617304038429,2.90695,1969.0,1968.9,2.90695]
[1617304039631,2.90695,1969.0,1968.9,79.71895]
[1617304040233,30.0,1970.2,1968.9,79.71895]
[1617304040432,89.812,1970.3,1968.9,81.10695]
[1617304040635,89.812,1970.3,1969.3,2.90695]
[1617304040833,13.0,1970.3,1969.3,4.01915]
[1617304041233,13.0,1970.3,1969.6,63.883]
[1617304041753,13.0,1970.3,1969.3,4.01915]
[1617304041935,13.0,1970.3,1970.2,77.9303]
[1617304042134,13.0,1970.3,1970.2,79.4558]
[1617304042744,15.90695,1970.3,1970.2,79.4558]
[1617304044339,15.90695,1970.3,1970.2,1.5255]
[1617304044544,15.90695,1970.3,1970.0,2.90695]
[1617304044742,2.90695,1970.1,1969.6,68.3832]
[1617304046039,32.90695,1970.1,1968.6,2.0]
[1617304046339,61.7323,1970.0,1968.2,61.7323]
[1617304046539,30.0,1969.9,1968.2,61.7323]
[1617304046839,30.0,1969.9,1967.7,2.0]
[1617304046840,32.3109,1969.9,1968.9,61.6806]
[1617304047239,33.01815759,1969.9,1968.9,61.6806]
[1617304047440,32.3109,1969.9,1968.9,61.6806]
[1617304047640,31.3066,1969.9,1968.9,61.6806]
[1617304048041,43.70572539,1970.3,1968.9,61.6806]
[1617304048443,43.0,1970.3,1968.9,61.6806]
[1617304048741,2.90695,1969.0,1968.9,61.6806]
[1617304050746,2.90695,1969.0,1968.3,32.25595]
[1617304050951,3.93375,1969.0,1968.5,66.8234]
[1617304051147,2.90695,1969.0,1968.5,66.8234]
[1617304052251,2.90695,1969.0,1968.5,67.9954]
[1617304052649,2.90695,1969.0,1968.9,2.90695]
[1617304052849,2.90695,1969.0,1968.9,4.43785]
[1617304054550,2.90695,1969.0,1968.9,2.90695]
[1617304057057,44.80664332,1970.3,1968.9,2.90695]
[1617304057258,14.80664332,1970.3,1968.9,2.90695]
[1617304057459,14.80664332,1970.3,1969.4,78.9771]
[1617304057760,14.80664332,1970.3,1969.4,80.5061]
[1617304057761,14.1,1970.3,1969.4,80.5061]
[1617304058259,13.0,1970.3,1969.4,80.5061]
[1617304058859,13.0,1970.3,1969.6,2.90695]
[1617304060962,2.90695,1969.7,1969.4,82.38665]
[1617304061163,2.90695,1969.7,1969.4,81.88535]
[1617304061366,2.90695,1969.7,1969.4,80.88405]
[1617304061963,2.90695,1969.7,1969.4,2.90695]
[1617304062166,2.90695,1969.7,1968.3,73.2935]
[1617304062375,2.90695,1969.7,1968.4,83.5803]
[1617304062564,2.90695,1969.7,1968.4,113.5803]
[1617304062765,83.5803,1970.0,1968.7,2.90695]
[1617304063869,30.0,1969.9,1968.7,2.90695]
[1617304064767,2.90695,1968.8,1968.4,83.5803]
[1617304066169,2.90695,1968.8,1968.4,84.6069]
[1617304066871,31.0289,1969.9,1968.7,2.90695]
[1617304068270,83.5803,1970.0,1968.7,2.90695]
[1617304068674,43.0,1970.3,1968.7,2.90695]
[1617304068873,13.0,1970.3,1969.6,2.90695]
[1617304069071,13.0,1970.3,1969.6,3.96985]
[1617304070874,13.0,1970.3,1969.8,2.90695]
[1617304072499,13.0,1970.3,1970.2,63.6731]
[1617304072780,13.0,1970.3,1970.2,64.7485]
[1617304072979,15.90695,1970.3,1970.2,67.65545]
[1617304073692,15.90695,1970.3,1970.2,68.66165]
[1617304073898,13.0,1970.3,1970.2,98.66165]
[1617304074281,12.2766,1970.3,1970.2,98.66165]
[1617304074483,11.276,1970.3,1970.2,98.66165]
[1617304074683,6.9514,1970.3,1970.2,98.66165]
[1617304074983,2.6581,1970.3,1970.2,98.66165]
[1617304075182,2.5617,1970.3,1970.2,98.66165]
[1617304075383,1.1285,1970.3,1970.2,98.66165]
[1617304075584,2.584,1972.0,1970.2,98.66165]
[1617304075786,70.5994,1972.6,1970.3,2.0]
[1617304075985,1.80256167,1973.0,1970.5,2.0]
[1617304076185,1.1,1973.0,1971.0,83.8203]
[1617304076385,30.70249273,1973.2,1971.0,85.0731]
[1617304076687,30.0,1973.2,1971.0,85.0731]
[1617304076886,30.0,1973.2,1971.5,2.90695]
[1617304077086,30.0,1973.2,1971.5,4.27415]
[1617304077287,32.0,1973.2,1971.5,4.27415]
[1617304077587,32.0,1973.2,1971.5,1.3672]
[1617304078206,33.1,1973.2,1971.0,83.8203]
[1617304078489,1.80254903,1973.1,1970.6,14.7173]
[1617304078697,81.892,1972.4,1970.6,14.7173]
[1617304078889,2.90695,1970.7,1970.6,14.7173]
[1617304083594,2.584,1972.3,1970.6,15.7323]
[1617304083794,2.584,1972.3,1970.6,100.4717]
[1617304083995,30.0,1972.2,1970.6,99.4567]
[1617304084696,30.0,1972.2,1970.7,2.0]
[1617304084896,2.90695,1971.0,1970.8,2.90695]
[1617304085097,2.90695,1971.0,1970.9,2.0]
[1617304085297,30.0,1972.2,1970.9,2.0]
[1617304085896,30.0,1972.5,1970.9,2.0]
[1617304086397,2.53714379,1972.7,1970.9,2.0]
[1617304086998,32.53714379,1972.7,1971.3,2.90695]
[1617304087199,1.1,1972.8,1971.3,5.28865]
[1617304087398,2.584,1973.2,1971.7,72.9719]
[1617304087599,2.584,1973.2,1971.7,74.3268]
[1617304088000,30.0,1973.1,1971.8,2.0]
[1617304088202,30.0,1973.1,1971.7,74.3268]
[1617304088502,30.0,1973.1,1971.7,75.3502]
[1617304089005,2.90695,1971.8,1971.7,75.3502]
[1617304089201,2.90695,1971.8,1971.7,77.3502]
[1617304090302,2.90695,1971.8,1971.7,75.3502]
[1617304091104,2.90695,1971.8,1971.7,2.3783]
[1617304091304,2.90695,1971.8,1971.7,72.9937]
[1617304093105,2.90695,1971.8,1971.7,2.3783]
[1617304093305,2.90695,1971.8,1971.0,78.86595]
[1617304093933,30.0,1971.7,1971.0,2.90695]
[1617304094110,105.1508,1971.7,1970.7,14.5712]
[1617304095211,2.90695,1970.8,1970.7,14.5712]
[1617304096412,2.90695,1970.8,1970.7,15.5849]
[1617304099115,64.783,1972.5,1970.8,64.783]
[1617304099413,2.90695,1971.7,1971.2,3.91435]
[1617304099615,2.90695,1971.7,1971.2,5.04495]
[1617304099814,2.90695,1971.7,1971.3,64.7823]
[1617304101316,2.90695,1971.4,1971.3,64.7823]
[1617304103022,2.53719527,1972.7,1971.3,64.7823]
[1617304103220,2.53719527,1972.7,1971.8,2.90695]
[1617304103435,2.53719527,1972.7,1971.8,4.55015]
[1617304103620,2.53719527,1972.7,1971.8,5.57895]
[1617304104320,30.0,1972.7,1971.8,5.57895]
[1617304104722,30.0,1972.7,1971.8,2.672]
[1617304105321,2.90695,1971.9,1971.8,2.672]
[1617304106221,2.90695,1971.9,1971.8,1.0288]
[1617304108425,2.90695,1971.9,1971.3,64.7823]
[1617304109327,30.0,1972.6,1971.6,2.90695]
[1617304109527,0.70611485,1972.9,1971.6,4.16625]
[1617304110227,30.0,1973.0,1971.6,4.16625]
[1617304111328,30.0,1973.0,1972.2,2.90695]
[1617304111528,30.0,1973.0,1972.2,5.52385]
[1617304111828,30.0,1973.1,1972.2,5.52385]
[1617304112128,30.0,1973.1,1972.2,88.74295]
[1617304113530,2.90695,1972.3,1972.2,88.74295]
[1617304117134,2.90695,1972.3,1972.2,5.52385]
[1617304117335,2.90695,1972.3,1972.2,1.0102]
[1617304117563,2.90695,1972.3,1971.6,2.90695]
[1617304119376,2.90695,1972.3,1971.8,2.90695]
[1617304121344,94.1121,1972.8,1972.0,2.90695]
[1617304121541,94.1121,1972.8,1971.7,1.0151]
[1617304122142,64.1121,1972.8,1971.7,1.0151]
[1617304123245,30.0,1972.7,1971.7,1.0151]
[1617304123473,2.90695,1971.8,1971.7,1.0151]
[1617304123647,3.92205,1971.8,1971.7,1.0151]
[1617304123847,2.90695,1971.8,1971.5,2.90695]
[1617304125548,30.0,1972.7,1971.7,2.90695]
[1617304126048,64.1121,1972.8,1971.7,2.90695]
[1617304126249,94.1121,1972.8,1971.7,3.90785]
[1617304127479,94.1121,1972.8,1972.1,2.90695]
[1617304127675,30.0,1972.8,1972.1,4.29915]
[1617304127855,30.0,1973.2,1972.1,71.45845]
[1617304128351,30.0,1973.2,1972.2,2.0]
[1617304129255,30.0,1973.6,1972.2,2.0]
[1617304129459,30.0,1973.6,1972.6,2.0]
[1617304129652,30.0,1973.6,1972.6,3.0813]
[1617304131556,2.90695,1972.7,1972.6,3.0813]
[1617304133058,2.90695,1972.7,1972.6,2.0]
[1617304135263,2.90695,1972.7,1972.2,2.0]
[1617304135464,2.90695,1972.3,1972.2,2.0]
[1617304137465,2.90695,1972.3,1972.2,4.90695]
[1617304138563,2.90695,1972.3,1972.2,2.0]
[1617304138763,2.90695,1972.3,1972.1,2.0]
[1617304138974,2.90695,1972.3,1972.2,2.0]
[1617304139464,2.90695,1972.3,1972.2,4.90695]
[1617304142269,2.90695,1972.3,1972.2,2.90695]
[1617304142469,68.9458,1972.8,1972.2,2.90695]
[1617304142769,68.9458,1972.8,1972.2,4.90695]
[1617304143170,68.9458,1972.8,1972.2,2.0]
[1617304143477,68.9458,1972.8,1972.1,2.90695]
[1617304144471,68.9458,1972.8,1972.1,4.90695]
[1617304144671,30.0,1973.3,1972.1,4.90695]
[1617304144871,30.0,1973.3,1972.1,6.52625]
[1617304145074,30.0,1973.3,1972.1,65.20965]
[1617304145572,30.0,1973.3,1972.5,2.90695]
[1617304145771,30.0,1973.3,1972.5,4.35475]
[1617304146371,30.0,1973.3,1972.5,1.4478]
[1617304147576,2.90695,1972.6,1972.5,1.4478]
[1617304150877,2.90695,1972.6,1972.4,2.90695]
[1617304152078,2.90695,1972.6,1972.1,58.6834]
[1617304152299,4.45895,1972.6,1972.0,13.9389]
[1617304152506,34.45895,1972.6,1972.0,13.9389]
[1617304152778,4.45895,1972.6,1972.0,13.9389]
[1617304153680,2.90695,1972.6,1972.0,13.9389]
[1617304153882,0.70687585,1973.2,1972.4,2.90695]
[1617304154282,0.70684435,1973.3,1972.4,2.90695]
[1617304155581,0.70680591,1973.4,1972.4,2.90695]
[1617304155884,2.90695,1972.5,1972.4,2.90695]
[1617304156282,2.90695,1972.5,1972.0,13.9389]
[1617304157882,2.90695,1972.1,1972.0,13.9389]
[1617304159183,59.4911,1972.6,1972.0,13.9389]
[1617304159788,60.20066286,1972.6,1972.0,13.9389]
[1617304159987,60.20066286,1972.6,1972.4,2.90695]
[1617304160187,60.20066286,1972.6,1972.0,13.9389]
[1617304161795,0.7095782,1972.5,1972.0,13.9389]
[1617304161989,2.90695,1972.1,1972.0,13.9389]
[1617304168094,3.61705203,1972.1,1972.0,13.9389]
[1617304169095,33.61705203,1972.1,1972.0,13.9389]
[1617304169299,32.90695,1972.1,1972.0,13.9389]
[1617304169498,33.53507415,1972.1,1972.0,13.9389]
[1617304169696,33.53507415,1972.1,1972.0,12.9179]
[1617304169898,33.53507415,1972.1,1970.9,2.0]
[1617304170096,0.71021227,1971.7,1970.9,2.0]
[1617304170296,2.34881227,1971.7,1970.8,13.7125]
[1617304170497,30.0,1971.6,1970.8,13.7125]
[1617304170898,0.71170496,1971.3,1970.8,13.7125]
[1617304171098,1.87440496,1971.3,1970.2,60.5612]
[1617304171499,0.98110264,1971.2,1970.2,60.5612]
[1617304171903,0.71176032,1971.1,1970.2,60.5612]
[1617304172101,0.71176032,1971.1,1970.5,2.90695]
[1617304172902,0.71176032,1971.1,1970.2,60.5612]
[1617304173701,0.71179743,1971.0,1970.2,60.5612]
[1617304173902,0.71179073,1971.2,1970.2,60.5612]
[1617304174201,0.71179073,1971.2,1970.6,2.90695]
[1617304174602,0.71179669,1971.1,1970.6,2.90695]
[1617304175402,0.71181414,1971.0,1970.2,60.5612]
[1617304176103,0.71179967,1971.1,1970.5,2.90695]
[1617304177602,0.71177101,1971.2,1970.5,2.90695]
[1617304178120,2.90695,1970.8,1970.7,2.90695]
[1617304179611,2.90695,1970.8,1970.2,60.5612]
[1617304180110,0.71177101,1971.2,1970.6,2.90695]
[1617304180309,0.71176874,1971.1,1970.6,2.90695]
[1617304180812,0.71176371,1971.2,1970.6,2.90695]
[1617304182215,2.90695,1970.7,1970.6,2.90695]
[1617304184421,0.71172278,1971.3,1970.6,2.90695]
[1617304185122,0.71341949,1971.0,1970.6,2.90695]
[1617304186225,0.71337254,1971.1,1970.9,2.90695]
[1617304186421,2.71311491,1971.7,1970.9,2.90695]
[1617304186422,0.71339595,1971.0,1970.9,2.90695]
[1617304186822,0.71338466,1971.1,1970.9,2.90695]
[1617304187522,2.7131503,1971.7,1970.9,2.90695]
[1617304187523,0.71338612,1971.0,1970.9,2.90695]
[1617304188324,3.62033612,1971.0,1970.9,2.90695]
[1617304188924,3.17684668,1971.0,1970.9,2.90695]
[1617304189526,3.89026321,1971.0,1970.9,2.90695]
[1617304189926,3.17684668,1971.0,1970.9,2.90695]
[1617304190830,3.88999437,1971.0,1970.2,60.5612]
[1617304191028,3.17684668,1971.0,1970.2,60.5612]
[1617304191430,0.98159672,1970.9,1970.2,60.5612]
[1617304191831,0.71318696,1970.8,1970.2,60.5612]
[1617304192030,0.9815974,1970.8,1970.2,60.5612]
[1617304192331,2.90695,1970.6,1970.5,2.90695]
[1617304192630,0.71318696,1970.8,1970.5,4.55165]
[1617304192831,0.71312293,1971.1,1970.5,4.55165]
[1617304193231,0.71311287,1971.2,1970.5,6.55165]
[1617304193435,0.71311287,1971.2,1970.5,4.55165]
[1617304193939,0.71308976,1971.1,1970.5,4.55165]
[1617304194332,3.62003747,1971.2,1971.0,2.90695]
[1617304198033,2.90695,1971.2,1971.0,2.90695]
[1617304198533,3.61990254,1971.2,1971.0,2.90695]
[1617304199233,2.90695,1971.2,1971.0,2.90695]
[1617304199434,2.90695,1971.2,1971.0,4.48895]
[1617304200535,3.61992125,1971.2,1970.6,1.01]
[1617304200735,3.61992125,1971.2,1970.3,2.0]
[1617304201335,0.71303733,1971.1,1970.3,2.0]
[1617304201536,0.71306739,1971.0,1970.3,2.0]
[1617304201734,1.81746739,1971.0,1970.3,2.0]
[1617304201935,0.7128769,1970.9,1970.3,2.0]
[1617304202235,2.90695,1970.4,1970.3,4.90695]
[1617304203236,0.95050253,1971.1,1970.3,4.90695]
[1617304203237,8.91631344,1973.1,1970.3,4.90695]
[1617304203436,2.97329073,1971.7,1970.4,59.5186]
[1617304203636,2.97329073,1971.7,1970.5,30.0]
[1617304203838,14.8589,1971.8,1971.5,77.8904]
[1617304204037,14.8589,1971.8,1971.6,30.0]
[1617304204359,14.8589,1971.8,1971.7,4.90695]
[1617304204565,14.8589,1971.8,1971.7,35.92995]
[1617304204739,15.94561629,1972.5,1971.7,35.92995]
[1617304205038,11.0,1972.5,1971.7,35.92995]
[1617304206443,11.0,1972.5,1972.4,4.90695]
[1617304206640,11.0,1972.5,1972.4,36.47165]
[1617304207038,13.8195,1972.8,1972.4,36.47165]
[1617304207241,13.8195,1972.8,1972.7,70.1289]
[1617304208439,13.8195,1972.8,1972.7,73.03585]
[1617304209140,13.8195,1972.8,1972.7,103.03585]
[1617304209339,13.8195,1972.8,1972.7,92.03585]
[1617304215149,13.8195,1972.8,1972.7,62.03585]
[1617304217163,13.8195,1972.8,1972.7,92.03585]
[1617304218063,13.8195,1972.8,1972.7,34.18935]
[1617304219654,13.8195,1972.8,1972.7,36.18935]
[1617304220459,13.8195,1972.8,1972.7,34.18935]
[1617304223059,13.8195,1972.8,1972.7,32.90695]
[1617304223662,13.8195,1972.8,1972.7,34.43805]
[1617304227660,13.8195,1972.8,1972.7,36.43805]
[1617304228161,13.7011,1972.8,1972.7,36.43805]
[1617304228963,10.643,1972.8,1972.7,36.43805]
[1617304229162,14.1412,1974.0,1972.7,36.43805]
[1617304229362,14.1412,1974.0,1972.8,50.43]
[1617304229562,84.5062,1974.7,1972.9,30.0]
[1617304230164,0.05905905,1974.2,1972.9,30.0]
[1617304230362,84.5062,1974.7,1972.9,30.0]
[1617304230562,84.5062,1974.7,1974.5,2.90695]
[1617304231466,84.5062,1974.7,1974.5,4.18895]
[1617304232067,84.5062,1974.7,1974.5,1.282]
[1617304232667,84.5062,1974.7,1974.4,2.90695]
[1617304234571,2.90695,1974.7,1974.6,2.90695]
[1617304234768,2.90695,1974.7,1974.6,34.57365]
[1617304235168,2.96590538,1974.7,1974.6,34.57365]
[1617304235669,2.90695,1974.7,1974.6,34.57365]
[1617304235969,2.90695,1974.7,1974.6,103.39215]
[1617304236673,2.96590402,1974.9,1974.6,103.39215]
[1617304237273,0.05895402,1974.9,1974.6,103.39215]
[1617304237675,14.25254519,1975.1,1974.6,103.39215]
[1617304238075,14.25254519,1975.1,1974.6,34.57365]
[1617304238380,14.1936,1975.1,1974.6,34.57365]
[1617304238774,14.1936,1975.1,1975.0,2.90695]
[1617304239681,14.25254539,1975.1,1975.0,2.90695]
[1617304239877,14.1936,1975.1,1975.0,2.90695]
[1617304240175,14.1936,1975.1,1975.0,4.02245]
[1617304240577,14.1936,1975.1,1975.0,34.02245]
[1617304244495,14.1936,1975.1,1975.0,1.1155]
[1617304244783,14.1936,1975.1,1974.5,2.90695]
[1617304244984,73.318,1974.9,1973.1,75.318]
[1617304245384,13.8494,1974.8,1973.1,75.318]
[1617304245584,13.8494,1974.8,1973.2,30.0]
[1617304246684,13.8494,1974.8,1974.2,2.90695]
[1617304247585,13.8494,1974.8,1974.2,32.90695]
[1617304248789,13.8494,1974.8,1974.5,2.90695]
[1617304249087,13.8494,1974.8,1974.6,30.0]
[1617304250900,16.75635,1974.8,1974.7,2.90695]
[1617304251095,16.75635,1974.8,1974.7,32.90695]
[1617304252406,13.8494,1974.8,1974.7,32.90695]
[1617304255592,13.8494,1974.8,1974.7,33.92435]
[1617304255792,13.8494,1974.8,1974.7,32.90695]
[1617304256794,13.8494,1974.8,1974.7,33.90625]
[1617304257196,13.8494,1974.8,1974.7,32.90695]
[1617304257397,2.90695,1975.2,1974.7,32.90695]
[1617304258807,2.90695,1975.2,1975.1,2.90695]
[1617304258998,2.90695,1975.2,1975.1,32.90695]
[1617304260906,2.90695,1975.4,1975.1,32.90695]
[1617304262909,2.90695,1975.4,1975.3,2.90695]
[1617304263644,2.90695,1975.4,1975.3,32.90695]
[1617304265454,13.7202,1976.4,1975.4,59.3282]
[1617304265635,13.7202,1976.4,1975.5,30.0]
[1617304266817,13.7202,1976.4,1976.0,2.90695]
[1617304267416,13.7202,1976.4,1976.0,32.90695]
[1617304268317,13.7202,1976.4,1976.0,2.90695]
[1617304268917,2.90695,1976.1,1976.0,2.90695]
[1617304270020,2.90695,1976.1,1975.4,59.3282]
[1617304270222,63.5377,1976.0,1975.3,30.0]
[1617304270523,63.5377,1976.0,1974.4,30.0]
[1617304270823,2.0,1975.9,1975.6,2.90695]
[1617304271223,2.0,1975.9,1974.4,30.0]
[1617304272024,63.5377,1976.0,1974.4,30.0]
[1617304272824,63.5377,1976.0,1975.1,2.90695]
[1617304274926,2.90695,1975.2,1975.1,2.90695]
[1617304276030,63.5377,1976.0,1975.1,32.90695]
[1617304276231,63.5377,1976.0,1975.1,2.90695]
[1617304276430,63.5377,1976.0,1975.1,32.90695]
[1617304276830,63.5377,1976.0,1975.5,2.90695]
[1617304277031,63.5377,1976.0,1975.4,1.4842]
[1617304278836,2.90695,1975.5,1975.4,4.39115]
[1617304279036,2.90695,1975.5,1975.4,2.90695]
[1617304281036,2.90695,1975.5,1975.2,2.90695]
[1617304281236,2.90695,1975.5,1975.2,32.90695]
[1617304281836,2.90695,1975.5,1975.2,2.90695]
[1617304282038,2.90695,1975.5,1973.6,14.1721]
[1617304282238,82.7974,1974.9,1973.6,14.1721]
[1617304282439,84.44,1974.9,1973.6,14.1721]
[1617304282939,84.44,1974.9,1974.4,2.90695]
[1617304283709,84.44,1974.9,1973.7,30.0]
[1617304284342,2.0,1974.8,1973.1,30.0]
[1617304284949,2.0,1974.8,1973.8,2.90695]
[1617304287148,2.90695,1973.9,1973.8,2.90695]
[1617304287648,2.90695,1973.9,1973.1,30.0]
[1617304288047,2.90695,1973.9,1972.9,1.008]
[1617304288048,64.67465,1973.9,1973.2,30.0]
[1617304288749,65.69525,1973.9,1973.2,30.0]
[1617304288949,62.7883,1973.9,1973.4,2.90695]
[1617304289349,1.0206,1973.9,1973.4,2.90695]
[1617304289550,15.421,1974.4,1973.4,2.90695]
[1617304290250,2.0,1974.3,1973.4,2.90695]
[1617304290450,2.0,1974.3,1973.2,87.8672]
[1617304290650,2.0,1974.3,1972.7,30.0]
[1617304290850,64.8875,1974.0,1972.7,30.0]
[1617304291051,66.2683,1974.0,1972.5,30.0]
[1617304291254,68.2683,1974.0,1972.5,30.0]
[1617304291653,68.97745229,1974.0,1972.5,30.0]
[1617304291952,69.98285229,1974.0,1972.5,30.0]
[1617304292152,0.70920715,1973.9,1972.5,30.0]
[1617304292353,0.7092189,1973.8,1972.5,30.0]
[1617304292853,0.70922504,1973.7,1972.5,30.0]
[1617304293054,0.96159325,1973.7,1972.7,2.90695]
[1617304293454,0.94563339,1973.9,1972.7,2.90695]
[1617304293455,0.70887467,1973.8,1972.7,2.90695]
[1617304294957,2.90695,1972.9,1972.7,2.90695]
[1617304296056,58.8845,1972.8,1972.7,2.90695]
[1617304298159,13.9595,1973.6,1972.7,113.48175]
[1617304298462,13.9595,1973.6,1972.7,114.69865]
[1617304299058,13.9595,1973.6,1973.5,2.90695]
[1617304299258,13.9595,1973.6,1973.5,3.96875]
[1617304300558,13.9595,1973.6,1973.5,2.90695]
[1617304301158,16.86645,1973.6,1973.5,2.90695]
[1617304301359,13.9595,1973.6,1973.5,32.90695]
[1617304306462,13.9595,1973.6,1973.5,33.91875]
[1617304307160,13.9595,1973.6,1973.5,32.90695]
[1617304307360,13.9595,1973.6,1973.5,90.65515]
[1617304307560,14.0,1973.9,1973.5,90.65515]
[1617304308060,14.0,1973.9,1973.5,91.66685]
[1617304308273,14.0,1973.9,1973.5,90.65515]
[1617304309061,14.0,1973.9,1973.8,2.90695]
[1617304309364,14.0,1973.9,1973.8,34.22755]
[1617304310562,4.6773,1973.9,1973.8,34.22755]
[1617304335806,3.6551,1973.9,1973.8,34.22755]
[1617304336006,2.7407,1973.9,1973.8,34.22755]
[1617304336208,2.4418,1973.9,1973.8,34.22755]
[1617304336824,2.3446,1973.9,1973.8,34.22755]
[1617304337032,3.3524,1973.9,1973.8,34.22755]
[1617304337211,1.0951,1973.9,1973.8,34.22755]
[1617304337411,17.58565,1974.9,1973.8,34.22755]
[1617304337612,17.58565,1974.9,1974.8,2.90695]
[1617304337811,17.58565,1974.9,1974.8,34.05725]
[1617304338613,2.90695,1974.9,1974.8,34.05725]
[1617304338918,1.01645,1974.9,1974.8,34.05725]
[1617304339115,0.71038155,1975.3,1974.8,34.05725]
[1617304339615,0.9471754,1975.5,1975.3,57.4758]
[1617304339616,0.71027803,1975.5,1975.3,57.4758]
[1617304339815,0.94698273,1975.6,1975.4,30.0]
[1617304340516,1.96958273,1975.6,1975.4,30.0]
[1617304340915,0.23660427,1975.5,1975.4,30.0]
[1617304341220,1.0226,1975.6,1975.4,31.0014]
[1617304341417,1.0226,1975.6,1975.4,30.0]
[1617304341618,3.61638748,1975.7,1975.4,30.0]
[1617304341619,3.61638748,1975.7,1975.5,2.90695]
[1617304341818,3.61638748,1975.7,1975.5,32.90695]
[1617304342421,0.70943717,1975.6,1975.5,32.90695]
[1617304342621,1.73233717,1975.6,1975.5,32.90695]
[1617304343322,1.0229,1975.6,1975.5,32.90695]
[1617304343522,3.61637291,1975.7,1975.5,32.90695]
[1617304343722,0.70942291,1975.7,1975.5,32.90695]
[1617304344524,1.72822291,1975.7,1975.5,32.90695]
[1617304344724,0.70942291,1975.7,1975.5,32.90695]
[1617304344926,0.70942521,1975.8,1975.5,32.90695]
[1617304345526,0.70942085,1975.7,1975.5,33.92595]
[1617304345729,0.94521485,1975.7,1975.5,32.90695]
[1617304346226,0.70942085,1975.7,1975.5,32.90695]
[1617304346828,3.61636102,1975.9,1975.5,32.90695]